[Event "*** Titled Tuesday 3|2 Blitz"]
[Site "Chess.com"]
[Date "2015.11.03"]
[Round "7"]
[White "Makalexa"]
[Black "metalbattler"]
[Result "1-0"]
[WhiteElo "2113"]
[BlackElo "1981"]
[TimeControl "180+2"]
[EndTime "12:31:29 PST"]
[Termination "Makalexa won on time"]

1. e4 {[%clk 0:03:01.9]} 1... d5 {[%clk 0:02:58.4]} 2. exd5 {[%clk 0:03:01.1]}
2... Nf6 {[%clk 0:02:58.4]} 3. Nf3 {[%clk 0:02:50.7]} 3... Qxd5 {[%clk
0:02:55.5]} 4. Nc3 {[%clk 0:02:48.3]} 4... Qa5 {[%clk 0:02:52]} 5. d4 {[%clk
0:02:46.4]} 5... c6 {[%clk 0:02:49.9]} 6. Ne5 {[%clk 0:02:43.7]} 6... Bf5 {[%clk
0:02:40.1]} 7. Bc4 {[%clk 0:02:40.3]} 7... e6 {[%clk 0:02:40.2]} 8. Be3 {[%clk
0:02:31.8]} 8... Nbd7 {[%clk 0:02:40.2]} 9. Qd2 {[%clk 0:02:15.7]} 9... Bd6
{[%clk 0:02:33.7]} 10. Nxd7 {[%clk 0:02:12.9]} 10... Nxd7 {[%clk 0:02:33]} 11.
O-O-O {[%clk 0:02:13.4]} 11... O-O-O {[%clk 0:02:11.5]} 12. Kb1 {[%clk
0:02:13.5]} 12... Nb6 {[%clk 0:02:03.2]} 13. Bb3 {[%clk 0:02:01.1]} 13... Bb4
{[%clk 0:02:04.3]} 14. Qe1 {[%clk 0:01:52.9]} 14... Nd5 {[%clk 0:01:59.9]} 15.
Bd2 {[%clk 0:01:49]} 15... Nxc3+ {[%clk 0:01:52.1]} 16. bxc3 {[%clk 0:01:48.3]}
16... Ba3 {[%clk 0:01:46.8]} 17. c4 {[%clk 0:01:45.6]} 17... Qa6 {[%clk
0:01:35.9]} 18. Bc3 {[%clk 0:01:38.1]} 18... Rd7 {[%clk 0:01:25.1]} 19. c5
{[%clk 0:01:34.4]} 19... Rhd8 {[%clk 0:01:21.9]} 20. Rd2 {[%clk 0:01:18.8]}
20... Qb5 {[%clk 0:01:15.2]} 21. Qe2 {[%clk 0:01:06.9]} 21... Bxc5 {[%clk
0:00:41]} 22. dxc5 {[%clk 0:00:49.8]} 22... Qxc5 {[%clk 0:00:35.8]} 23. Rxd7
{[%clk 0:00:46.2]} 23... Rxd7 {[%clk 0:00:36.1]} 24. Qe3 {[%clk 0:00:39.4]}
24... Qa3 {[%clk 0:00:27.3]} 25. Bb2 {[%clk 0:00:36.4]} 25... Qb4 {[%clk
0:00:24.9]} 26. Qxa7 {[%clk 0:00:31.7]} 26... f6 {[%clk 0:00:20.1]} 27. Qa3
{[%clk 0:00:29.8]} 27... Qd2 {[%clk 0:00:17.8]} 28. Qc5 {[%clk 0:00:24.6]} 28...
Kc7 {[%clk 0:00:11.4]} 29. Bc3 {[%clk 0:00:23.2]} 29... Qe2 {[%clk 0:00:10.2]}
30. Ba5+ {[%clk 0:00:21.6]} 30... Kb8 {[%clk 0:00:09.7]} 31. Bb6 {[%clk
0:00:18.1]} 1-0

[Event "*** Titled Tuesday 3|2 Blitz"]
[Site "Chess.com"]
[Date "2015.11.03"]
[Round "7"]
[White "Frolyanov_D"]
[Black "ruifeng"]
[Result "1-0"]
[WhiteElo "2359"]
[BlackElo "2134"]
[TimeControl "180+2"]
[EndTime "12:31:58 PST"]
[Termination "Frolyanov_D won by resignation"]

1. d4 {[%clk 0:03:01.9]} 1... Nf6 {[%clk 0:02:59.4]} 2. c4 {[%clk 0:03:02.1]}
2... g6 {[%clk 0:02:59.6]} 3. Nf3 {[%clk 0:03:03.2]} 3... Bg7 {[%clk 0:03:00.5]}
4. g3 {[%clk 0:03:04.7]} 4... c5 {[%clk 0:03:01.5]} 5. Bg2 {[%clk 0:03:01.6]}
5... cxd4 {[%clk 0:03:01.2]} 6. Nxd4 {[%clk 0:03:02.3]} 6... O-O {[%clk
0:03:02.2]} 7. O-O {[%clk 0:03:02.2]} 7... Qc7 {[%clk 0:02:59.6]} 8. b3 {[%clk
0:02:57.9]} 8... Nc6 {[%clk 0:02:59.4]} 9. Bb2 {[%clk 0:02:58]} 9... d6 {[%clk
0:02:59.5]} 10. Nb5 {[%clk 0:02:50]} 10... Qd8 {[%clk 0:02:58]} 11. N1c3 {[%clk
0:02:41.7]} 11... Be6 {[%clk 0:02:53.1]} 12. Nd5 {[%clk 0:02:34.1]} 12... Nxd5
{[%clk 0:02:36.1]} 13. Bxg7 {[%clk 0:02:32.1]} 13... Ne3 {[%clk 0:02:37.1]} 14.
fxe3 {[%clk 0:02:31.4]} 14... Kxg7 {[%clk 0:02:37.5]} 15. Nd4 {[%clk 0:02:32.4]}
15... Bd7 {[%clk 0:02:35.9]} 16. Bd5 {[%clk 0:02:28.2]} 16... Rc8 {[%clk
0:02:23.1]} 17. Qd2 {[%clk 0:02:27]} 17... e6 {[%clk 0:02:19.6]} 18. Bg2 {[%clk
0:02:20]} 18... a6 {[%clk 0:02:10.6]} 19. Rad1 {[%clk 0:02:16.2]} 19... Ne5
{[%clk 0:02:07.5]} 20. Nf3 {[%clk 0:02:11.6]} 20... Nxf3+ {[%clk 0:02:02]} 21.
exf3 {[%clk 0:01:54.3]} 21... Qb6 {[%clk 0:01:54.4]} 22. Qd4+ {[%clk 0:01:53.6]}
22... Qxd4 {[%clk 0:01:54.4]} 23. Rxd4 {[%clk 0:01:54.3]} 23... Bc6 {[%clk
0:01:47.4]} 24. Rxd6 {[%clk 0:01:52]} 24... Rfd8 {[%clk 0:01:45.6]} 25. Rfd1
{[%clk 0:01:49.1]} 25... Rxd6 {[%clk 0:01:45.9]} 26. Rxd6 {[%clk 0:01:48.7]}
26... Kf6 {[%clk 0:01:47.1]} 27. f4 {[%clk 0:01:45.2]} 27... Ke7 {[%clk
0:01:46.7]} 28. Rd2 {[%clk 0:01:38.9]} 28... a5 {[%clk 0:01:46.8]} 29. e4 {[%clk
0:01:35.5]} 29... b6 {[%clk 0:01:40.8]} 30. e5 {[%clk 0:01:36]} 30... Bxg2
{[%clk 0:01:38.4]} 31. Kxg2 {[%clk 0:01:36.5]} 31... Rc6 {[%clk 0:01:37.6]} 32.
Kf3 {[%clk 0:01:33.8]} 32... h5 {[%clk 0:01:36.7]} 33. h4 {[%clk 0:01:28.4]}
33... Rc5 {[%clk 0:01:32.8]} 34. Ke4 {[%clk 0:01:27.8]} 34... Rc6 {[%clk
0:01:25.9]} 35. Kd4 {[%clk 0:01:27.6]} 35... Rc8 {[%clk 0:01:15.2]} 36. a3
{[%clk 0:01:22.2]} 36... f6 {[%clk 0:00:56.6]} 37. b4 {[%clk 0:01:17.1]} 37...
fxe5+ {[%clk 0:00:55.9]} 38. fxe5 {[%clk 0:01:13.4]} 38... axb4 {[%clk
0:00:54.8]} 39. axb4 {[%clk 0:01:13.3]} 39... Rd8+ {[%clk 0:00:55.8]} 40. Kc3
{[%clk 0:01:09.6]} 40... Rf8 {[%clk 0:00:56.9]} 41. c5 {[%clk 0:01:02.7]} 41...
bxc5 {[%clk 0:00:54.2]} 42. bxc5 {[%clk 0:01:03.2]} 42... Rf3+ {[%clk
0:00:54.4]} 43. Rd3 {[%clk 0:01:03.4]} 43... Rf1 {[%clk 0:00:54.8]} 44. Kc4
{[%clk 0:01:01.9]} 44... Re1 {[%clk 0:00:53.4]} 45. Kb5 {[%clk 0:01:00.4]} 45...
Rxe5 {[%clk 0:00:51.7]} 46. Kb6 {[%clk 0:01:00.6]} 46... Re1 {[%clk 0:00:52.2]}
47. Rb3 {[%clk 0:00:44.8]} 47... Rc1 {[%clk 0:00:40.8]} 48. c6 {[%clk
0:00:41.7]} 48... Kd6 {[%clk 0:00:40.1]} 49. Rd3+ {[%clk 0:00:38.3]} 49... Ke5
{[%clk 0:00:37.2]} 50. c7 {[%clk 0:00:36.9]} 50... Kf5 {[%clk 0:00:30.2]} 51.
Rb3 {[%clk 0:00:32.1]} 51... e5 {[%clk 0:00:30.5]} 52. Rb5 {[%clk 0:00:32.8]}
1-0

[Event "*** Titled Tuesday 3|2 Blitz"]
[Site "Chess.com"]
[Date "2015.11.03"]
[Round "7"]
[White "spectralsoul"]
[Black "Dlugy"]
[Result "0-1"]
[WhiteElo "2481"]
[BlackElo "2573"]
[TimeControl "180+2"]
[EndTime "12:32:03 PST"]
[Termination "Dlugy won by resignation"]

1. g3 {[%clk 0:03:01.9]} 1... d5 {[%clk 0:03:00.4]} 2. Bg2 {[%clk 0:03:02.9]}
2... c6 {[%clk 0:03:01.9]} 3. Nf3 {[%clk 0:03:01.3]} 3... Bg4 {[%clk 0:03:02.2]}
4. h3 {[%clk 0:03:02.5]} 4... Bh5 {[%clk 0:03:02.5]} 5. d3 {[%clk 0:02:59.4]}
5... e6 {[%clk 0:03:03.5]} 6. O-O {[%clk 0:02:57.3]} 6... Nf6 {[%clk 0:03:01.9]}
7. Nbd2 {[%clk 0:02:58.2]} 7... Be7 {[%clk 0:03:02.9]} 8. e4 {[%clk 0:02:59.1]}
8... O-O {[%clk 0:03:04]} 9. Qe2 {[%clk 0:02:59.6]} 9... c5 {[%clk 0:03:05.2]}
10. Re1 {[%clk 0:02:55.8]} 10... Nc6 {[%clk 0:03:06.2]} 11. c3 {[%clk
0:02:57.2]} 11... Rc8 {[%clk 0:03:00.9]} 12. g4 {[%clk 0:02:53.7]} 12... Bg6
{[%clk 0:03:01.5]} 13. Nh4 {[%clk 0:02:55.2]} 13... dxe4 {[%clk 0:02:59.6]} 14.
dxe4 {[%clk 0:02:56.6]} 14... Nd7 {[%clk 0:02:57.8]} 15. Nxg6 {[%clk 0:02:55.9]}
15... hxg6 {[%clk 0:02:58.9]} 16. Rd1 {[%clk 0:02:51]} 16... Qc7 {[%clk
0:02:48.5]} 17. Nf3 {[%clk 0:02:50.7]} 17... Rfd8 {[%clk 0:02:46.8]} 18. Be3
{[%clk 0:02:50.3]} 18... Bd6 {[%clk 0:02:40.9]} 19. Bg5 {[%clk 0:02:40.1]} 19...
f6 {[%clk 0:02:14.5]} 20. Qc4 {[%clk 0:02:30.6]} 20... Nf8 {[%clk 0:02:06.5]}
21. Be3 {[%clk 0:02:28.1]} 21... Na5 {[%clk 0:01:54.6]} 22. Qe2 {[%clk
0:02:26.7]} 22... g5 {[%clk 0:01:52.8]} 23. Rd2 {[%clk 0:01:48.2]} 23... Bf4
{[%clk 0:01:48.9]} 24. Bxf4 {[%clk 0:01:16.7]} 24... Qxf4 {[%clk 0:01:49.1]} 25.
Rad1 {[%clk 0:01:16.4]} 25... Rxd2 {[%clk 0:01:48.5]} 26. Rxd2 {[%clk
0:01:17.9]} 26... Ng6 {[%clk 0:01:47]} 27. Rd7 {[%clk 0:01:17.2]} 27... Nf8
{[%clk 0:01:39.5]} 28. Rd1 {[%clk 0:01:11.3]} 28... Nc6 {[%clk 0:01:38.8]} 29.
Qc4 {[%clk 0:01:03.2]} 29... b6 {[%clk 0:01:37.1]} 30. b4 {[%clk 0:00:56.1]}
30... Ne5 {[%clk 0:01:32.8]} 31. Nxe5 {[%clk 0:00:56.7]} 31... Qxe5 {[%clk
0:01:34.7]} 32. a4 {[%clk 0:00:52.7]} 32... Ng6 {[%clk 0:01:33]} 33. Rd7 {[%clk
0:00:52.5]} 33... Kh7 {[%clk 0:01:08.7]} 34. Qa6 {[%clk 0:00:46.2]} 34... Rc7
{[%clk 0:01:07.3]} 35. Rxc7 {[%clk 0:00:27.9]} 35... Qxc7 {[%clk 0:01:08.3]} 36.
Qc4 {[%clk 0:00:29.1]} 36... Qe5 {[%clk 0:01:06.9]} 37. Bf1 {[%clk 0:00:28.2]}
37... Qd6 {[%clk 0:00:59.9]} 38. Qa6 {[%clk 0:00:16.2]} 38... Qc7 {[%clk
0:00:54.1]} 39. Qc4 {[%clk 0:00:16.6]} 39... Nf4 {[%clk 0:00:53.8]} 40. Qb5
{[%clk 0:00:14.2]} 40... Qd6 {[%clk 0:00:53.8]} 41. Qc4 {[%clk 0:00:15]} 41...
cxb4 {[%clk 0:00:50.5]} 42. cxb4 {[%clk 0:00:16.1]} 42... Qd1 {[%clk 0:00:50.3]}
43. b5 {[%clk 0:00:17.6]} 43... Nxh3+ {[%clk 0:00:50.8]} 44. Kg2 {[%clk
0:00:14.4]} 44... Qxg4+ {[%clk 0:00:51]} 45. Kh2 {[%clk 0:00:15.9]} 45... Nxf2
{[%clk 0:00:46.7]} 46. Bg2 {[%clk 0:00:16.5]} 46... Qf4+ {[%clk 0:00:46.5]} 47.
Kg1 {[%clk 0:00:17.9]} 47... Ng4 {[%clk 0:00:47.7]} 48. Qe2 {[%clk 0:00:12]}
48... Qc1+ {[%clk 0:00:44.9]} 49. Bf1 {[%clk 0:00:12.9]} 49... Qe3+ {[%clk
0:00:44.8]} 50. Kg2 {[%clk 0:00:12]} 50... Qxe2+ {[%clk 0:00:43.1]} 51. Bxe2
{[%clk 0:00:13.9]} 51... Ne5 {[%clk 0:00:44.2]} 52. Kg3 {[%clk 0:00:14.9]} 52...
g6 {[%clk 0:00:45.3]} 53. Bd1 {[%clk 0:00:16.2]} 53... Kg7 {[%clk 0:00:45.8]}
54. Bb3 {[%clk 0:00:17.3]} 54... Kf7 {[%clk 0:00:47]} 0-1

[Event "*** Titled Tuesday 3|2 Blitz"]
[Site "Chess.com"]
[Date "2015.11.03"]
[Round "7"]
[White "Oligan22"]
[Black "Baggio95"]
[Result "0-1"]
[WhiteElo "2173"]
[BlackElo "2388"]
[TimeControl "180+2"]
[EndTime "12:32:11 PST"]
[Termination "Baggio95 won on time"]

1. e4 {[%clk 0:03:01.6]} 1... e5 {[%clk 0:02:57.6]} 2. Nf3 {[%clk 0:02:59.6]}
2... Nc6 {[%clk 0:02:56.5]} 3. Bb5 {[%clk 0:02:58]} 3... a6 {[%clk 0:02:57.4]}
4. Ba4 {[%clk 0:02:58.1]} 4... Nge7 {[%clk 0:02:57.4]} 5. c3 {[%clk 0:02:57]}
5... g6 {[%clk 0:02:57.9]} 6. d4 {[%clk 0:02:57.6]} 6... exd4 {[%clk 0:02:57.7]}
7. cxd4 {[%clk 0:02:57.9]} 7... b5 {[%clk 0:02:57.7]} 8. Bb3 {[%clk 0:02:58.4]}
8... Bg7 {[%clk 0:02:57.8]} 9. O-O {[%clk 0:02:48.3]} 9... O-O {[%clk
0:02:57.8]} 10. Nc3 {[%clk 0:02:37.7]} 10... Na5 {[%clk 0:02:57.7]} 11. Bc2
{[%clk 0:02:30.8]} 11... d6 {[%clk 0:02:57.8]} 12. Be3 {[%clk 0:02:28.2]} 12...
Nc4 {[%clk 0:02:51.9]} 13. Bc1 {[%clk 0:02:28.9]} 13... Bg4 {[%clk 0:02:42.4]}
14. b3 {[%clk 0:02:21.6]} 14... c5 {[%clk 0:02:19.1]} 15. bxc4 {[%clk
0:01:52.7]} 15... cxd4 {[%clk 0:02:18]} 16. Nd5 {[%clk 0:01:51.1]} 16... Nxd5
{[%clk 0:02:09.2]} 17. cxd5 {[%clk 0:01:38.4]} 17... d3 {[%clk 0:02:08.9]} 18.
Rb1 {[%clk 0:01:13]} 18... dxc2 {[%clk 0:02:09.3]} 19. Qxc2 {[%clk 0:01:14.9]}
19... Bxf3 {[%clk 0:02:02.4]} 20. gxf3 {[%clk 0:01:15.2]} 20... Rc8 {[%clk
0:02:02.9]} 21. Qe2 {[%clk 0:00:57.8]} 21... Qh4 {[%clk 0:01:55.5]} 22. f4
{[%clk 0:00:50.9]} 22... Rc3 {[%clk 0:01:30.1]} 23. Rb3 {[%clk 0:00:43.5]} 23...
Rfc8 {[%clk 0:01:29.7]} 24. Be3 {[%clk 0:00:39.1]} 24... Rc2 {[%clk 0:01:26.5]}
25. Qf3 {[%clk 0:00:31.5]} 25... Rxa2 {[%clk 0:01:26]} 26. e5 {[%clk 0:00:21.7]}
26... dxe5 {[%clk 0:01:26]} 27. d6 {[%clk 0:00:22.6]} 27... Rd8 {[%clk
0:01:13.7]} 28. Rd1 {[%clk 0:00:18.3]} 28... e4 {[%clk 0:01:12.1]} 29. Qg2
{[%clk 0:00:11.8]} 29... Qh5 {[%clk 0:01:05.9]} 30. Rbb1 {[%clk 0:00:11.8]}
30... Rd7 {[%clk 0:00:58.5]} 31. Qxe4 {[%clk 0:00:12.3]} 31... Qg4+ {[%clk
0:00:56.1]} 32. Kh1 {[%clk 0:00:12.8]} 32... Bf8 {[%clk 0:00:51.1]} 33. Qc6
{[%clk 0:00:10.8]} 33... Qf5 {[%clk 0:00:36.6]} 34. Rbc1 {[%clk 0:00:11.4]}
34... b4 {[%clk 0:00:34.7]} 35. Qc8 {[%clk 0:00:12]} 35... b3 {[%clk 0:00:29.8]}
36. Rc7 {[%clk 0:00:12.6]} 36... Rxd6 {[%clk 0:00:20]} 37. Rxd6 {[%clk
0:00:11.1]} 37... Qxc8 {[%clk 0:00:18.6]} 38. Rxc8 {[%clk 0:00:11.7]} 38... b2
{[%clk 0:00:19.7]} 39. Rdd8 {[%clk 0:00:06.2]} 39... b1=Q+ {[%clk 0:00:19.3]}
40. Kg2 {[%clk 0:00:07.5]} 40... Qe4+ {[%clk 0:00:19.2]} 41. Kg3 {[%clk
0:00:08.7]} 41... Ra1 {[%clk 0:00:14]} 42. Rxf8+ {[%clk 0:00:06]} 42... Kg7
{[%clk 0:00:15.5]} 0-1

[Event "*** Titled Tuesday 3|2 Blitz"]
[Site "Chess.com"]
[Date "2015.11.03"]
[Round "7"]
[White "igorkovalenko"]
[Black "MITerryble"]
[Result "0-1"]
[WhiteElo "2529"]
[BlackElo "2606"]
[TimeControl "180+2"]
[EndTime "12:32:13 PST"]
[Termination "MITerryble won by resignation"]

1. d4 {[%clk 0:03:01.9]} 1... e6 {[%clk 0:03:01]} 2. Nf3 {[%clk 0:03:02.5]} 2...
Nf6 {[%clk 0:03:01.9]} 3. e3 {[%clk 0:03:03.8]} 3... b6 {[%clk 0:03:01.6]} 4.
Bd3 {[%clk 0:03:05.7]} 4... Bb7 {[%clk 0:03:02.7]} 5. O-O {[%clk 0:03:07]} 5...
Be7 {[%clk 0:03:00.4]} 6. c4 {[%clk 0:03:08.2]} 6... O-O {[%clk 0:03:02]} 7. Nc3
{[%clk 0:03:08.9]} 7... d5 {[%clk 0:03:02.1]} 8. cxd5 {[%clk 0:03:10.4]} 8...
exd5 {[%clk 0:03:01.4]} 9. b3 {[%clk 0:03:11.7]} 9... Nbd7 {[%clk 0:02:57.7]}
10. Bb2 {[%clk 0:03:13.3]} 10... c5 {[%clk 0:02:58.8]} 11. Rc1 {[%clk
0:03:13.8]} 11... a6 {[%clk 0:02:53.8]} 12. Qe2 {[%clk 0:03:14.8]} 12... b5
{[%clk 0:02:54.8]} 13. dxc5 {[%clk 0:03:15.5]} 13... Nxc5 {[%clk 0:02:55.1]} 14.
Bb1 {[%clk 0:03:13.6]} 14... Qb6 {[%clk 0:02:55.2]} 15. Rfd1 {[%clk 0:03:13.5]}
15... Rfd8 {[%clk 0:02:53.6]} 16. Nd4 {[%clk 0:03:13.8]} 16... Bf8 {[%clk
0:02:50.3]} 17. Qf3 {[%clk 0:03:12.1]} 17... Nce4 {[%clk 0:02:45.8]} 18. Nce2
{[%clk 0:03:13]} 18... Rac8 {[%clk 0:02:45.7]} 19. Qh3 {[%clk 0:03:10.6]} 19...
b4 {[%clk 0:01:50.2]} 20. f3 {[%clk 0:03:06.6]} 20... Nd6 {[%clk 0:01:45.8]} 21.
Kf2 {[%clk 0:02:46.1]} 21... Re8 {[%clk 0:01:43.9]} 22. Ng3 {[%clk 0:02:32.7]}
22... g6 {[%clk 0:01:38.9]} 23. Qh4 {[%clk 0:02:32.3]} 23... Bg7 {[%clk
0:01:37.4]} 24. Qf4 {[%clk 0:02:28.7]} 24... Nd7 {[%clk 0:01:15.4]} 25. Nf1
{[%clk 0:02:23.5]} 25... Rxc1 {[%clk 0:00:57.6]} 26. Rxc1 {[%clk 0:02:24.4]}
26... Nc5 {[%clk 0:00:58.8]} 27. Rd1 {[%clk 0:01:52]} 27... a5 {[%clk
0:00:58.7]} 28. h4 {[%clk 0:01:52]} 28... a4 {[%clk 0:00:59.4]} 29. h5 {[%clk
0:01:53.2]} 29... axb3 {[%clk 0:00:58.5]} 30. axb3 {[%clk 0:01:55.1]} 30... Nxb3
{[%clk 0:00:58.4]} 31. h6 {[%clk 0:01:53.3]} 31... Be5 {[%clk 0:00:59.1]} 32.
Qh4 {[%clk 0:01:49.6]} 32... Nc4 {[%clk 0:00:47.4]} 33. Nxb3 {[%clk 0:01:48]}
33... Nxb2 {[%clk 0:00:43.9]} 34. Re1 {[%clk 0:01:47.8]} 34... Bc3 {[%clk
0:00:42.5]} 35. Re2 {[%clk 0:01:48.7]} 35... Nd1+ {[%clk 0:00:39.7]} 36. Kg1
{[%clk 0:01:49.8]} 36... Nxe3 {[%clk 0:00:37.7]} 37. Qf2 {[%clk 0:01:38.4]}
37... d4 {[%clk 0:00:36.8]} 38. Bd3 {[%clk 0:01:39.8]} 38... Bd5 {[%clk
0:00:37]} 39. Nbd2 {[%clk 0:01:39.4]} 39... b3 {[%clk 0:00:37.9]} 40. Nb1 {[%clk
0:01:40]} 40... Bb4 {[%clk 0:00:36.1]} 41. Qh4 {[%clk 0:01:37.9]} 41... Kf8
{[%clk 0:00:30]} 42. Qg5 {[%clk 0:01:34.9]} 42... f6 {[%clk 0:00:26.8]} 43. Qh4
{[%clk 0:01:34.9]} 43... Bf7 {[%clk 0:00:25.6]} 44. Qf4 {[%clk 0:01:26.4]} 44...
Bd6 {[%clk 0:00:25.1]} 45. Qh4 {[%clk 0:01:27.4]} 45... Bc5 {[%clk 0:00:23.8]}
46. Nxe3 {[%clk 0:01:25.6]} 46... Rxe3 {[%clk 0:00:22.4]} 47. Rd2 {[%clk
0:01:22.6]} 47... Bb4 {[%clk 0:00:20.4]} 48. Rd1 {[%clk 0:01:24]} 48... Qd6
{[%clk 0:00:20.7]} 49. Bf1 {[%clk 0:01:15.5]} 49... Qe5 {[%clk 0:00:19.9]} 50.
f4 {[%clk 0:01:11.2]} 50... Qd6 {[%clk 0:00:18.7]} 51. Nd2 {[%clk 0:01:11.9]}
51... b2 {[%clk 0:00:17.3]} 52. Qg4 {[%clk 0:01:03.1]} 52... Qe6 {[%clk
0:00:11.9]} 53. f5 {[%clk 0:01:02]} 53... Qxf5 {[%clk 0:00:09.9]} 54. Qxd4
{[%clk 0:01:01]} 54... Bc5 {[%clk 0:00:11]} 55. Qa4 {[%clk 0:00:59.4]} 55...
Ra3+ {[%clk 0:00:10.6]} 0-1

[Event "*** Titled Tuesday 3|2 Blitz"]
[Site "Chess.com"]
[Date "2015.11.03"]
[Round "7"]
[White "sorito"]
[Black "Aygehovit1992"]
[Result "0-1"]
[WhiteElo "2102"]
[BlackElo "2482"]
[TimeControl "180+2"]
[EndTime "12:32:13 PST"]
[Termination "Aygehovit1992 won by resignation"]

1. d4 {[%clk 0:03:01.9]} 1... g6 {[%clk 0:03:00]} 2. Nf3 {[%clk 0:03:00.6]} 2...
Bg7 {[%clk 0:03:01.3]} 3. c3 {[%clk 0:03:01]} 3... d5 {[%clk 0:03:02.1]} 4. Bf4
{[%clk 0:03:01]} 4... Nf6 {[%clk 0:03:03.1]} 5. e3 {[%clk 0:03:01.8]} 5... O-O
{[%clk 0:03:04.7]} 6. h3 {[%clk 0:02:35.9]} 6... c5 {[%clk 0:03:04.9]} 7. Bd3
{[%clk 0:02:35.3]} 7... Nc6 {[%clk 0:03:04.6]} 8. Nbd2 {[%clk 0:02:35.7]} 8...
b6 {[%clk 0:02:56.5]} 9. O-O {[%clk 0:02:35.8]} 9... Bf5 {[%clk 0:02:44.8]} 10.
Bxf5 {[%clk 0:02:35.8]} 10... gxf5 {[%clk 0:02:45.9]} 11. Qa4 {[%clk 0:02:36.6]}
11... Qd7 {[%clk 0:02:41.4]} 12. dxc5 {[%clk 0:02:26.2]} 12... bxc5 {[%clk
0:02:41.1]} 13. Rfd1 {[%clk 0:02:27.5]} 13... e6 {[%clk 0:02:32.3]} 14. Qa3
{[%clk 0:02:23.5]} 14... Qe7 {[%clk 0:02:23.8]} 15. Ne5 {[%clk 0:02:23.4]} 15...
Nxe5 {[%clk 0:02:23.7]} 16. Bxe5 {[%clk 0:02:25.3]} 16... Rfc8 {[%clk
0:02:23.6]} 17. c4 {[%clk 0:02:20.7]} 17... Qf8 {[%clk 0:01:51.2]} 18. Rac1
{[%clk 0:02:17.1]} 18... dxc4 {[%clk 0:01:45.3]} 19. Nxc4 {[%clk 0:02:15.3]}
19... Ne4 {[%clk 0:01:42.6]} 20. Rd7 {[%clk 0:02:00.4]} 20... Rd8 {[%clk
0:01:25.6]} 21. Bxg7 {[%clk 0:01:45.8]} 21... Kxg7 {[%clk 0:01:20.5]} 22. Rcd1
{[%clk 0:01:42.5]} 22... Nf6 {[%clk 0:01:11.8]} 23. Qc3 {[%clk 0:01:26.1]} 23...
Rxd7 {[%clk 0:00:49]} 24. Rxd7 {[%clk 0:01:26.2]} 24... Qe8 {[%clk 0:00:50.7]}
25. Rc7 {[%clk 0:01:14.6]} 25... Rd8 {[%clk 0:00:44.8]} 26. f4 {[%clk
0:00:58.7]} 26... Rd1+ {[%clk 0:00:42.3]} 27. Kh2 {[%clk 0:00:59.8]} 27... Qd8
{[%clk 0:00:25.1]} 28. Rxa7 {[%clk 0:00:58]} 28... Rd3 {[%clk 0:00:17.1]} 29.
Qe1 {[%clk 0:00:56.8]} 29... Ne4 {[%clk 0:00:16.2]} 30. Ne5 {[%clk 0:00:55]}
30... Rd1 {[%clk 0:00:14.2]} 31. Rxf7+ {[%clk 0:00:54.7]} 31... Kg8 {[%clk
0:00:15.3]} 32. Qe2 {[%clk 0:00:49.5]} 32... Rh1+ {[%clk 0:00:16.1]} 33. Kxh1
{[%clk 0:00:48.3]} 33... Ng3+ {[%clk 0:00:17.4]} 34. Kh2 {[%clk 0:00:49.9]}
34... Nxe2 {[%clk 0:00:18.6]} 35. Rd7 {[%clk 0:00:50]} 35... Qa8 {[%clk
0:00:18.3]} 36. a3 {[%clk 0:00:47.9]} 36... Qa5 {[%clk 0:00:18.1]} 37. Re7
{[%clk 0:00:43.7]} 37... Qe1 {[%clk 0:00:16.1]} 38. Re8+ {[%clk 0:00:38.9]}
38... Kg7 {[%clk 0:00:16.4]} 39. Nf3 {[%clk 0:00:27]} 39... Qc1 {[%clk
0:00:16.5]} 40. Rxe6 {[%clk 0:00:26.1]} 40... Qxb2 {[%clk 0:00:17.6]} 41. Ng5
{[%clk 0:00:24.5]} 41... Qa1 {[%clk 0:00:14.3]} 42. Nf3 {[%clk 0:00:24.4]} 42...
c4 {[%clk 0:00:15.7]} 43. Rc6 {[%clk 0:00:25.3]} 43... c3 {[%clk 0:00:16.9]} 44.
g4 {[%clk 0:00:24.8]} 44... fxg4 {[%clk 0:00:17.6]} 45. hxg4 {[%clk 0:00:26.1]}
45... Qb2 {[%clk 0:00:19.2]} 46. Rc7+ {[%clk 0:00:27]} 46... Kf8 {[%clk
0:00:19.8]} 47. Kh3 {[%clk 0:00:28.5]} 47... c2 {[%clk 0:00:20.8]} 48. Rc8+
{[%clk 0:00:26.4]} 48... Ke7 {[%clk 0:00:21.4]} 49. Rc7+ {[%clk 0:00:14.5]}
49... Kd8 {[%clk 0:00:21.5]} 0-1